fUST/lending_fUST_20260129
["ID","MTS","AMOUNT","RATE_DAILY","PERIOD"]
[403945459,1769685038801,-151.0,0.000119,2]
[403945462,1769685038812,-151.0,0.000119,2]
[403945464,1769685038822,-151.0,0.000119,2]
[403945465,1769685038832,-151.0,0.000119,2]
[403945467,1769685038842,-151.0,0.000119,2]
[403945469,1769685038854,-151.0,0.000119,2]
[403945471,1769685038863,-500.0,0.00011987,2]
[403945473,1769685038873,-500.0,0.00011987,2]
[403945475,1769685038883,-500.0,0.00011987,2]
[403945477,1769685038892,-500.0,0.00011987,2]
[403945479,1769685038902,-489.40126129,0.00011991,2]
[403945481,1769685038911,-500.0,0.00012124,2]
[403945483,1769685038920,-500.0,0.00012124,2]
[403945485,1769685038930,-500.0,0.00012124,2]
[403945487,1769685038939,-500.0,0.00012124,2]
[403945489,1769685038947,-300.0,0.00012129,2]
[403945491,1769685038956,-300.0,0.00012129,2]
[403945493,1769685038966,-300.0,0.00012129,2]
[403945495,1769685038975,-300.0,0.00012129,2]
[403945497,1769685038985,-300.0,0.00012129,2]
[403945499,1769685038995,-300.0,0.00012129,2]
[403945501,1769685039004,-300.0,0.00012129,2]
[403945503,1769685039013,-300.0,0.00012129,2]
[403945505,1769685039022,-300.0,0.00012129,2]
[403945506,1769685039032,-300.0,0.00012129,2]
[403945508,1769685039042,-300.0,0.00012129,2]
[403945510,1769685039051,-300.0,0.00012129,2]
[403945512,1769685039060,-300.0,0.00012129,2]
[403945514,1769685039070,-300.0,0.00012129,2]
[403945516,1769685039079,-300.0,0.00012129,2]
[403945518,1769685039088,-600.0,0.00012129,2]
[403945520,1769685039097,-500.0,0.00012129,2]
[403945522,1769685039107,-500.0,0.00012261,2]
[403945524,1769685039115,-201.07590603,0.00012261,2]
[403945526,1769685039124,-203.97185566,0.00012261,2]
[403945528,1769685039134,-500.0,0.00012261,2]
[403945530,1769685039143,-500.0,0.00012261,2]
[403945532,1769685039153,-500.0,0.00012261,2]
[403945534,1769685039162,-2592.63,0.00012329,2]
[403945536,1769685039171,-2160.52,0.00012329,2]
[403945538,1769685039180,-1800.44,0.00012329,2]
[403945539,1769685039189,-1500.36,0.00012329,2]
[403945541,1769685039198,-202.41865959,0.00012398,2]
[403945544,1769685039209,-200.0,0.00012398,2]
[403945545,1769685039219,-231.517554,0.00012398,2]
[403945548,1769685039228,-251.03981442,0.00012398,2]
[403945550,1769685039237,-500.0,0.00012398,2]
[403945551,1769685039247,-500.0,0.00012398,2]
[403945553,1769685039256,-500.0,0.00012398,2]
[403945555,1769685039265,-500.0,0.00012403,2]
[403945557,1769685039274,-2375.6980479,0.00012472,2]
[403945559,1769685039284,-500.0,0.00012535,2]
[403945561,1769685039292,-250.0,0.00012672,2]
[403945563,1769685039301,-500.0,0.00012677,2]
[403945565,1769685039310,-500.0,0.00012726,2]
[403945567,1769685039319,-500.0,0.00012726,2]
[403945569,1769685039333,-500.0,0.00012863,2]
[403945571,1769685039342,-500.0,0.00012863,2]
[403945573,1769685039352,-420.0,0.00012945,2]
[403945575,1769685039362,-500.0,0.00012951,2]
[403945577,1769685039373,-500.0,0.00013,2]
[403945578,1769685039382,-218.34852113,0.00013,2]
[403945580,1769685039391,-2737.81768824,0.00013,2]
[403945582,1769685039401,-550.0,0.00013137,2]
[403945584,1769685039411,-1133.04,0.00013208,2]
[403945586,1769685039420,-500.0,0.00013225,2]
[403945588,1769685039431,-2375.6980479,0.00013254,2]
[403945590,1769685039440,-500.0,0.00013273,2]
[403945592,1769685039449,-500.0,0.00013273,2]
[403945594,1769685039459,-500.0,0.00013273,2]
[403945596,1769685039469,-500.0,0.00013273,2]
[403945598,1769685039478,-165.96638872,0.00013273,2]
[403945600,1769685039487,-500.0,0.00013273,2]
[403945602,1769685039496,-500.0,0.00013273,2]
[403945604,1769685039506,-500.0,0.00013273,2]
[403945606,1769685039515,-500.0,0.00013273,2]
[403945608,1769685039524,-500.0,0.00013273,2]
[403945610,1769685039533,-500.0,0.00013273,2]
[403945612,1769685039543,-162.52274592,0.00013273,2]
[403945614,1769685039551,-500.0,0.00013273,2]
[403945616,1769685039560,-500.0,0.00013273,2]
[403945617,1769685039568,-500.0,0.00013273,2]
[403945618,1769685039577,-217.62261144,0.00013273,2]
[403945619,1769685039586,-162.28812704,0.00013273,2]
[403945620,1769685039594,-500.0,0.00013273,2]
[403945621,1769685039603,-500.0,0.00013273,2]
[403945622,1769685039612,-500.0,0.00013273,2]
[403945623,1769685039621,-500.0,0.00013273,2]
[403945624,1769685039630,-500.0,0.00013273,2]
[403945625,1769685039639,-500.0,0.00013273,2]
[403945626,1769685039795,-500.0,0.00013273,2]
[403945627,1769685039808,-500.0,0.00013273,2]
[403945628,1769685039817,-500.0,0.00013273,2]
[403945629,1769685039827,-549.00671497,0.00013273,2]
[403945630,1769685039836,-500.0,0.00013273,2]
[403945631,1769685039845,-500.0,0.00013273,2]
[403945632,1769685039857,-500.0,0.00013273,2]
[403945633,1769685039866,-500.0,0.00013273,2]
[403945634,1769685039876,-500.0,0.00013273,2]
[403945635,1769685039885,-536.76797533,0.00013273,2]
[403945636,1769685039896,-218.50816465,0.00013273,2]
[403945637,1769685039906,-500.0,0.00013273,2]
[403945638,1769685039916,-500.0,0.00013273,2]
[403945639,1769685039925,-500.0,0.00013273,2]
[403945640,1769685039934,-500.0,0.00013273,2]
[403945641,1769685039943,-500.0,0.00013273,2]
[403945642,1769685039952,-500.0,0.00013273,2]
[403945643,1769685039961,-167.9297864,0.00013273,2]
[403945644,1769685039970,-549.17716233,0.00013273,2]
[403945645,1769685039979,-501.83727549,0.00013273,2]
[403945646,1769685039988,-500.0,0.00013273,2]
[403945647,1769685039997,-161.6192891,0.00013273,2]
[403945648,1769685040006,-500.0,0.00013273,2]
[403945649,1769685040014,-500.0,0.00013273,2]
[403945650,1769685040023,-500.0,0.00013273,2]
[403945651,1769685040032,-172.04906802,0.00013273,2]
[403945652,1769685040042,-500.0,0.00013273,2]
[403945653,1769685040051,-502.31062213,0.00013273,2]
[403945655,1769685040061,-500.0,0.00013273,2]
[403945657,1769685040069,-500.0,0.00013273,2]
[403945659,1769685040078,-500.0,0.00013273,2]
[403945661,1769685040087,-269.41265799,0.00013273,2]
[403945663,1769685040096,-159.74515792,0.00013273,2]
[403945665,1769685040109,-500.0,0.00013273,2]
[403945667,1769685040118,-500.0,0.00013273,2]
[403945669,1769685040127,-500.0,0.00013273,2]
[403945671,1769685040136,-500.0,0.00013273,2]
[403945673,1769685040145,-500.0,0.00013273,2]
[403945675,1769685040154,-619.456376,0.00013273,2]
[403945677,1769685040163,-500.0,0.00013273,2]
[403945679,1769685040171,-316.86005023,0.00013273,2]
[403945681,1769685040181,-500.0,0.00013273,2]
[403945683,1769685040190,-233.02595063,0.00013273,2]
[403945685,1769685040199,-500.0,0.00013273,2]
[403945687,1769685040208,-500.15361623,0.00013273,2]
[403945689,1769685040217,-500.0,0.00013273,2]
[403945692,1769685040226,-500.0,0.00013273,2]
[403945694,1769685040236,-500.0,0.00013273,2]
[403945696,1769685040245,-402.96126214,0.00013273,2]
[403945698,1769685040254,-500.0,0.00013273,2]
[403945700,1769685040263,-500.0,0.00013273,2]
[403945702,1769685040272,-293.94369268,0.00013308,2]
[403945705,1769685040281,-720.0,0.00013341,2]
[403945708,1769685040290,-500.0,0.00013499,2]
[403945711,1769685040299,-328.0619319,0.00013614,2]
[403945713,1769685040308,-300.0,0.00013673,2]
[403945715,1769685040317,-500.0,0.00013698,2]
[403945718,1769685040328,-500.0,0.00013698,2]
[403945720,1769685040340,-500.0,0.00013698,2]
[403945721,1769685040349,-500.0,0.00013698,2]
[403945723,1769685040358,-500.0,0.00013698,2]
[403945725,1769685040367,-500.0,0.00013698,2]
[403945727,1769685040377,-500.0,0.00013698,2]
[403945729,1769685040386,-500.0,0.00013698,2]
[403945731,1769685040395,-610.45891108,0.00013698,2]
[403945733,1769685040406,-500.0,0.00013698,2]
[403945735,1769685040415,-500.0,0.00013698,2]
[403945737,1769685040425,-500.0,0.00013698,2]
[403945739,1769685040434,-500.0,0.00013698,2]
[403945741,1769685040444,-500.0,0.00013698,2]
[403945743,1769685040454,-500.0,0.00013698,2]
[403945745,1769685040463,-500.0,0.00013698,2]
[403945747,1769685040472,-500.0,0.00013698,2]
[403945749,1769685040482,-500.0,0.00013698,2]
[403945751,1769685040490,-500.0,0.00013698,2]
[403945754,1769685040500,-500.0,0.00013698,2]
[403945755,1769685040509,-500.0,0.00013698,2]
[403945757,1769685040518,-500.0,0.00013698,2]
[403945759,1769685040527,-492.70915793,0.00013698,2]
[403945762,1769685040536,-525.32488563,0.00013698,2]
[403945764,1769685040546,-500.0,0.00013698,2]
[403945766,1769685040555,-500.0,0.00013698,2]
[403945768,1769685040564,-500.0,0.00013698,2]
[403945769,1769685040573,-500.0,0.00013698,2]
[403945771,1769685040582,-500.0,0.00013698,2]
[403945773,1769685040591,-500.0,0.00013698,2]
[403945775,1769685040600,-500.0,0.00013698,2]
[403945777,1769685040609,-544.76043412,0.00013698,2]
[403945779,1769685040618,-500.0,0.00013698,2]
[403945781,1769685040628,-500.0,0.00013698,2]
[403945783,1769685040637,-500.0,0.00013698,2]
[403945785,1769685040646,-500.0,0.00013698,2]
[403945788,1769685040656,-500.0,0.00013698,2]
[403945790,1769685040665,-500.0,0.00013698,2]
[403945792,1769685040674,-500.0,0.00013698,2]
[403945794,1769685040683,-583.95253597,0.00013698,2]
[403945796,1769685040691,-500.0,0.00013698,2]
[403945797,1769685040700,-533.70108919,0.00013698,2]
[403945800,1769685040710,-500.0,0.00013698,2]
[403945802,1769685040719,-500.0,0.00013698,2]
[403945804,1769685040727,-500.0,0.00013698,2]
[403945806,1769685040736,-500.0,0.00013698,2]
[403945808,1769685040745,-500.0,0.00013698,2]
[403945809,1769685040754,-502.22690096,0.00013698,2]
[403945811,1769685040763,-607.57,0.00013698,2]
[403945813,1769685040772,-607.57,0.00013698,2]
[403945815,1769685040781,-607.57,0.00013698,2]
[403945817,1769685040790,-607.57,0.00013698,2]
[403945819,1769685040799,-607.57,0.00013698,2]
[403945821,1769685040808,-607.57,0.00013698,2]
[403945823,1769685040817,-607.57,0.00013698,2]
[403945825,1769685040827,-607.57,0.00013698,2]
[403945827,1769685040835,-607.57,0.00013698,2]
[403945829,1769685040845,-607.57,0.00013698,2]
[403945831,1769685040855,-607.57,0.00013698,2]
[403945833,1769685040865,-607.57,0.00013698,2]
[403945835,1769685040874,-607.57,0.00013698,2]
[403945837,1769685040883,-607.57,0.00013698,2]
[403945839,1769685040893,-607.57,0.00013698,2]
[403945842,1769685040903,-607.57,0.00013698,2]
[403945844,1769685040912,-607.57,0.00013698,2]
[403945846,1769685040922,-607.57,0.00013698,2]
[403945847,1769685040932,-607.57,0.00013698,2]
[403945849,1769685040942,-607.57,0.00013698,2]
[403945852,1769685040952,-607.57,0.00013698,2]
[403945854,1769685040961,-607.57,0.00013698,2]
[403945856,1769685040971,-607.57,0.00013698,2]
[403945858,1769685040980,-607.6,0.00013698,2]
[403945860,1769685040988,-500.0,0.00013698,2]
[403945861,1769685040997,-500.0,0.00013698,2]
[403945863,1769685041006,-500.0,0.00013698,2]
[403945865,1769685041015,-500.0,0.00013698,2]
[403945867,1769685041024,-500.0,0.00013698,2]
[403945869,1769685041033,-500.0,0.00013698,2]
[403945871,1769685041043,-518.94139039,0.00013698,2]
[403945873,1769685041052,-530.03606409,0.00013698,2]
[403945875,1769685041061,-500.0,0.00013698,2]
[403945877,1769685041071,-500.0,0.00013698,2]
[403945879,1769685041081,-500.0,0.00013698,2]
[403945881,1769685041094,-500.0,0.00013698,2]
[403945883,1769685041104,-500.0,0.00013698,2]
[403945885,1769685041114,-500.0,0.00013698,2]
[403945887,1769685041124,-500.0,0.00013698,2]
[403945889,1769685041135,-500.0,0.00013698,2]
[403945891,1769685041144,-500.0,0.00013698,2]
[403945893,1769685041153,-500.0,0.00013698,2]
[403945895,1769685041163,-500.0,0.00013698,2]
[403945897,1769685041172,-500.0,0.00013698,2]
[403945899,1769685041181,-500.0,0.00013698,2]
[403945902,1769685041191,-500.0,0.00013698,2]
[403945904,1769685041200,-500.0,0.00013698,2]
[403945906,1769685041209,-500.0,0.00013698,2]
[403945908,1769685041219,-500.0,0.00013698,2]
[403945910,1769685041228,-500.0,0.00013698,2]
[403945912,1769685041237,-500.0,0.00013698,2]
[403945914,1769685041247,-500.0,0.00013698,2]
[403945916,1769685041256,-500.0,0.00013698,2]
[403945918,1769685041265,-500.0,0.00013698,2]
[403945920,1769685041274,-500.0,0.00013698,2]
[403945922,1769685041283,-500.0,0.00013698,2]
[403945924,1769685041292,-1510.315818,0.00013699,2]
[403945926,1769685041302,-14207.240606,0.00013699,2]
[403945928,1769685041311,-500.0,0.00013699,2]
[403945930,1769685041320,-314.792435,0.00013699,2]
[403945932,1769685041331,-501.76365168,0.00013699,2]
[403945934,1769685041341,-500.0,0.00013699,2]
[403945936,1769685041350,-500.75803963,0.00013699,2]
[403945938,1769685041360,-505.40496948,0.00013699,2]
[403945940,1769685041370,-507.77467851,0.00013699,2]
[403945942,1769685041379,-501.60095283,0.00013699,2]
[403945944,1769685041388,-500.0,0.00013699,2]
[403945946,1769685041398,-500.84679195,0.00013699,2]
[403945948,1769685041407,-500.0,0.00013699,2]
[403945950,1769685041417,-500.0,0.00013699,2]
[403945952,1769685041426,-500.0,0.00013699,2]
[403945954,1769685041435,-291.60725507,0.00013699,2]
[403945956,1769685041444,-500.0,0.00013699,2]
[403945958,1769685041452,-500.0,0.00013699,2]
[403945960,1769685041463,-500.0,0.00013699,2]
[403945962,1769685041471,-500.0,0.00013699,2]
[403945964,1769685041480,-500.0,0.00013699,2]
[403945966,1769685041490,-500.0,0.00013699,2]
[403945968,1769685041499,-500.0,0.00013699,2]
[403945970,1769685041508,-500.0,0.00013699,2]
[403945972,1769685041517,-500.0,0.00013699,2]
[403945974,1769685041526,-500.0,0.00013699,2]
[403945976,1769685041536,-502.71899874,0.00013699,2]
[403945978,1769685041545,-500.0,0.00013699,2]
[403945980,1769685041555,-500.0,0.00013699,2]
[403945982,1769685041565,-581.55133366,0.00013699,2]
[403945984,1769685041574,-249.23628586,0.00013699,2]
[403945986,1769685041582,-500.0,0.00013773,2]
[403945988,1769685041591,-500.0,0.00013821,2]
[403945990,1769685041601,-501.40141245,0.00013821,2]
[403945992,1769685041610,-501.0352963,0.00013821,2]
[403945994,1769685041620,-1000.0,0.00013821,2]
[403945996,1769685041629,-316.97781624,0.00013821,2]
[403945998,1769685041638,-1000.0,0.00013821,2]
[403946000,1769685041647,-1000.0,0.00013821,2]
[403946002,1769685041656,-1000.0,0.00013821,2]
[403946004,1769685041666,-696.99444629,0.00013821,2]
[403946006,1769685041675,-355.419529,0.00013821,2]
[403946008,1769685041684,-1000.0,0.00013821,2]
[403946010,1769685041693,-1000.0,0.00013821,2]
[403946012,1769685041702,-152.49167372,0.00013821,2]
[403946014,1769685041711,-502.30333023,0.00013821,2]
[403946016,1769685041720,-1000.0,0.00013821,2]
[403946018,1769685041729,-502.84198919,0.00013821,2]
[403946021,1769685041740,-1000.0,0.00013821,2]
[403946022,1769685041749,-430.04295978,0.00013821,2]
[403946024,1769685041758,-502.121625,0.00013821,2]
[403946026,1769685041768,-1006.38016949,0.00013821,2]
[403946028,1769685041778,-504.66671492,0.00013821,2]
[403946030,1769685041787,-1000.0,0.00013821,2]
[403946033,1769685041797,-1000.0,0.00013821,2]
[403946035,1769685041810,-468.87374591,0.00013821,2]
[403946037,1769685041819,-1000.0,0.00013821,2]
[403946039,1769685041828,-1000.0,0.00013821,2]
[403946041,1769685041837,-636.43381346,0.00013821,2]
[403946043,1769685041846,-399.87672354,0.00013821,2]
[403946045,1769685041855,-675.05414771,0.00013821,2]
[403946047,1769685041863,-500.92401321,0.00013821,2]
[403946049,1769685041873,-1000.0,0.00013821,2]
[403946051,1769685041882,-1000.0,0.00013821,2]
[403946053,1769685041891,-1000.0,0.00013821,2]
[403946055,1769685041900,-1000.0,0.00013821,2]
[403946057,1769685041909,-1000.0,0.00013821,2]
[403946059,1769685041918,-1000.0,0.00013821,2]
[403946061,1769685041928,-1000.0,0.00013973,2]
[403946063,1769685041938,-2375.6980479,0.00014035,2]
[403946065,1769685041947,-500.0,0.00014047,2]
[403946067,1769685041956,-2773.56790519,0.00014091,2]
[403946069,1769685041965,-212.5608784,0.00014091,2]
[403946071,1769685041974,-1957.856,0.00014091,2]
[403946073,1769685041984,-30000.0,0.00014091,2]
[403946075,1769685041994,-209.40437684,0.00014091,2]
[403946077,1769685042003,-255.04015786,0.00014091,2]
[403946079,1769685042012,-151.0,0.00014091,2]
[403946081,1769685042022,-151.0,0.00014091,2]
[403946083,1769685042031,-209.40437684,0.00014091,2]
[403946084,1769685042040,-151.0,0.00014091,2]
[403946087,1769685042051,-217.15233878,0.00014091,2]
[403946089,1769685042059,-151.0,0.00014091,2]
[403946090,1769685042070,-225.18697532,0.00014091,2]
[403946092,1769685042080,-151.0,0.00014091,2]
[403946095,1769685042090,-151.0,0.00014091,2]
[403946096,1769685042103,-233.51889341,0.00014091,2]
[403946099,1769685042113,-151.0,0.00014091,2]
[403946101,1769685042123,-151.0,0.00014091,2]
[403946103,1769685042132,-151.0,0.00014091,2]
[403946105,1769685042141,-242.15909246,0.00014091,2]
[403946107,1769685042150,-151.0,0.00014091,2]
[403946109,1769685042159,-251.11897888,0.00014091,2]
[403946110,1769685042168,-151.0,0.00014091,2]
[403946112,1769685042177,-1741.00052949,0.00014091,2]
[403946115,1769685042187,-260.4103811,0.00014091,2]
[403946117,1769685042196,-270.0455652,0.00014091,2]
[403946119,1769685042205,-280.03725112,0.00014091,2]
[403946121,1769685042214,-290.39862941,0.00014091,2]
[403946123,1769685042223,-301.1433787,0.00014091,2]
[403946125,1769685042232,-587.0,0.00014214,2]
[403946126,1769685042241,-600.0,0.00014221,2]
[403946128,1769685042250,-160.9968606,0.00014247,2]
[403946130,1769685042260,-1000.0,0.00014247,2]
[403946132,1769685042269,-1000.0,0.00014247,2]
[403946135,1769685042279,-1000.0,0.00014247,2]
[403946136,1769685042288,-504.15902707,0.00014247,2]
[403946139,1769685042299,-500.0,0.00014247,2]
[403946140,1769685042309,-1000.0,0.00014247,2]
[403946142,1769685042318,-592.85387235,0.00014247,2]
[403946144,1769685042329,-1000.0,0.00014247,2]
[403946146,1769685042340,-1000.0,0.00014247,2]
[403946148,1769685042351,-1000.0,0.00014247,2]
[403946150,1769685042360,-1102.21614882,0.00014247,2]
[403946153,1769685042371,-1000.0,0.00014247,2]
[403946154,1769685042380,-1134.23032778,0.00014247,2]
[403946156,1769685042389,-1000.0,0.00014247,2]
[403946158,1769685042398,-500.0,0.00014321,2]
[403946160,1769685042409,-1887.55672302,0.00014342,2]
[403946162,1769685042418,-517.09664357,0.00014368,2]
[403946165,1769685042429,-1500.0,0.00014368,2]
[403946167,1769685042438,-1500.0,0.00014368,2]
[403946169,1769685042448,-1559.00085584,0.00014368,2]
[403946171,1769685042458,-397.62397769,0.00014368,2]
[403946173,1769685042467,-1500.0,0.00014368,2]
[403946175,1769685042476,-1500.0,0.00014368,2]
[403946177,1769685042485,-1446.97070643,0.00014368,2]
[403946178,1769685042495,-1500.0,0.00014368,2]
[403946180,1769685042504,-768.34650551,0.00014368,2]
[403946183,1769685042514,-1500.0,0.00014368,2]
[403946185,1769685042525,-1500.0,0.00014368,2]
[403946187,1769685042534,-507.51247725,0.00014368,2]
[403946189,1769685042543,-1500.0,0.00014368,2]
[403946203,1769685042664,-1500.0,0.00014368,2]
[403946205,1769685042674,-1500.0,0.00014368,2]
[403946207,1769685042684,-607.3138929,0.00014368,2]
[403946209,1769685042693,-1500.0,0.00014368,2]
[403946211,1769685042702,-167.59538682,0.00014384,2]
[403946213,1769685042711,-250.0,0.00014556,2]
[403946215,1769685042720,-1041.66666667,0.00014576,2]
[403946217,1769685042729,-160.0,0.00014576,2]
[403946219,1769685042738,-160.0,0.00014576,2]
[403946221,1769685042747,-500.0,0.00014595,2]
[403946223,1769685042756,-2876.18991768,0.00014639,2]
[403946225,1769685042765,-31110.0,0.00014639,2]
[403946227,1769685042774,-217.15233878,0.00014639,2]
[403946229,1769685042783,-864.0,0.00014676,2]
[403946231,1769685042792,-900.0,0.00014768,2]
[403946233,1769685042800,-565.0903288,0.00014795,2]
[403946235,1769685042809,-336.07837269,0.00014795,2]
[403946237,1769685042819,-822.54748319,0.00014795,2]
[403946239,1769685042828,-1500.0,0.00014795,2]
[403946241,1769685042837,-501.10012348,0.00014795,2]
[403946243,1769685042846,-1500.0,0.00014795,2]
[403946245,1769685042856,-1500.0,0.00014795,2]
[403946247,1769685042865,-2375.6980479,0.00014816,2]
[403946249,1769685042874,-151.76349159,0.000149,2]
[403946251,1769685042883,-151.76349157,0.000149,2]
[403946253,1769685042893,-151.76349157,0.000149,2]
[403946255,1769685042903,-1034.37285197,0.00014916,2]
[403946257,1769685042911,-520.40957357,0.00014916,2]
[403946259,1769685042920,-2079.55665597,0.00014916,2]
[403946261,1769685042929,-1500.0,0.00014916,2]
[403946263,1769685042939,-674.31678051,0.00014916,2]
[403946265,1769685042949,-2001.01080598,0.00014916,2]
[403946267,1769685042958,-2000.0,0.00014916,2]
[403946269,1769685042967,-2000.0,0.00014916,2]
[403946271,1769685042977,-1504.66008898,0.00014916,2]
[403946273,1769685042986,-2000.0,0.00014916,2]
[403946275,1769685042995,-2000.0,0.00014916,2]
[403946277,1769685043003,-2000.0,0.00014916,2]
[403946279,1769685043012,-2000.0,0.00014916,2]
[403946281,1769685043021,-2150.0,0.000151,2]
[403946283,1769685043030,-630.0,0.000151,2]
[403946285,1769685043040,-1369.0,0.000151,2]
[403946287,1769685043049,-529.312,0.000151,2]
[403946289,1769685043061,-418.0,0.000151,2]
[403946291,1769685043070,-716.0,0.000151,2]
[403946293,1769685043080,-180.914,0.000151,2]
[403946295,1769685043089,-2982.60894464,0.00015187,2]
[403946298,1769685043098,-32261.07,0.00015187,2]
[403946300,1769685043107,-225.18697532,0.00015187,2]
[403946302,1769685043117,-800.0,0.00015233,2]
[403946304,1769685043126,-150.063,0.00015234,2]
[403946305,1769685043135,-150.331,0.00015234,2]
[403946307,1769685043146,-250.0,0.00015234,2]
[403946309,1769685043156,-150.318,0.00015234,2]
[403946311,1769685043165,-800.0,0.00015248,2]
[403946313,1769685043175,-800.0,0.00015255,2]
[403946315,1769685043184,-800.0,0.00015256,2]
[403946317,1769685043194,-4137.49140787,0.00015294,2]
[403946319,1769685043203,-800.0,0.00015298,2]
[403946322,1769685043213,-10000.0,0.000153,2]
[403946324,1769685043222,-300.0,0.00015316,2]
[403946326,1769685043231,-164.93,0.00015342,2]
[403946328,1769685043240,-10000.0,0.00015342,2]
[403946330,1769685043249,-680.99683053,0.00015357,2]
[403946332,1769685043258,-800.0,0.00015375,2]
[403946334,1769685043267,-176.9863264,0.00015385,2]
[403946336,1769685043276,-11116.6721982,0.00015385,2]
[403946339,1769685043285,-206.6985121,0.00015385,2]
[403946342,1769685043294,-800.0,0.00015388,2]
[403946344,1769685043303,-800.0,0.00015392,2]
[403946347,1769685043312,-800.0,0.00015398,2]
[403946350,1769685043322,-155.315,0.00015399,2]
[403946353,1769685043335,-946433.17056981,0.000154,2]
[403946355,1769685043344,-181627.56033107,0.000154,2]
[403946357,1769685043354,-152.0,0.000154,2]
[403946359,1769685043363,-14750.2586577,0.00015458,2]
[403946361,1769685043374,-500.0,0.00015464,2]
[403946363,1769685043383,-1500.0,0.00015464,2]
[403946365,1769685043392,-2500.0,0.00015464,2]
[403946367,1769685043405,-2500.0,0.00015464,2]
[403946369,1769685043414,-2500.0,0.00015464,2]
[403946371,1769685043424,-823.0,0.00015607,2]
[403946373,1769685043434,-378.10527745,0.00015614,2]
[403946375,1769685043443,-5000.0,0.0001564,2]
[403946377,1769685043452,-3092.96547559,0.00015735,2]
[403946379,1769685043461,-25634.03341341,0.00015735,2]
[403946381,1769685043471,-186.01972045,0.00015735,2]
[403946383,1769685043480,-152.0,0.00015768,2]
[403946385,1769685043490,-152.0,0.00015768,2]
[403946387,1769685043499,-152.0,0.00015768,2]
[403946389,1769685043509,-152.0,0.00015768,2]
[403946391,1769685043518,-151.0,0.00015768,2]
[403946393,1769685043527,-240.0,0.00015768,2]
[403946395,1769685043537,-151.0,0.00015768,2]
[403946397,1769685043546,-151.0,0.00015768,2]
[403946399,1769685043556,-151.0,0.00015768,2]
[403946401,1769685043565,-151.0,0.00015768,2]
[403946403,1769685043574,-151.0,0.00015768,2]
[403946405,1769685043583,-151.0,0.00015768,2]
[403946407,1769685043592,-151.0,0.00015768,2]
[403946409,1769685043601,-292.0,0.00015768,2]
[403946411,1769685043610,-163.39152907,0.0001586,2]
[403946413,1769685043619,-4626.895246,0.00015954,2]
[403946415,1769685043629,-500.0,0.00016012,2]
[403946418,1769685043639,-3091.91529561,0.00016012,2]
[403946419,1769685043647,-1000.0,0.00016012,2]
[403946421,1769685043657,-1000.0,0.00016143,2]
[403946424,1769685043666,-3207.40519818,0.00016283,2]
[403946426,1769685043677,-200.0,0.00016438,2]
[403946428,1769685043686,-500.29181227,0.00016438,2]
[403946430,1769685043696,-269.15028555,0.00016438,2]
[403946432,1769685043705,-526.0,0.0001661,2]
[403946434,1769685043714,-4626.895246,0.00016625,2]
[403946436,1769685043723,-182.583336,0.00016625,7]
[403946438,1769685043731,-526.0,0.00016726,2]
[403946440,1769685043743,-3326.07919052,0.00016831,2]
[403946442,1769685043753,-526.0,0.0001687,2]